Workbook

Sheet Basic Model
A1: Sine Index > | B1: =B1+0.5 -> 51005 | I1: CI | AA1: Phase Matrix
B2: Average | C2: Variance | E2: 1 | F2: 2 | G2: 3 | H2: 4 | I2: 5 | J2: 6 | K2: 7 | L2: 8 | M2: 9 | N2: 10
A3: Average CI Start | B3: =AVERAGE(E3:N3) -> 1.256370842 | C3: =VAR(E3:N3) -> 0.3334678782 | D3: Start CI | E3: 1.921275496 | F3: 1.195486307 | G3: 0.7955833673 | H3: 0.6021037102 | I3: 0.7371081114 | J3: 1.543398619 | K3: 1.865615964 | L3: 1.550697327 | M3: 1.915253043 | N3: 0.4371864796 | AA3: 1 | AB3: 2 | AC3: 3 | AD3: 4 | AE3: 5 | AF3: 6 | AG3: 7 | AH3: 8 | AI3: 9 | AJ3: 10
D4: 1 | E4: 10 | F4: =SIN(2*3.141598*$B$1/500+AB4)+1.5 -> 1.884393165 | G4: 2.349157404 | H4: 0.5039124902 | I4: 0.5258478127 | J4: 0.5023523128 | K4: 0.9166016437 | L4: 0.51058595 | M4: 2.449246449 | N4: 0.7685015723 | AA4: 3.657799191 | AB4: 2.683119632 | AC4: 2.063282187 | AD4: 4.736954138 | AE4: 4.876325688 | AF4: 4.717070079 | AG4: 5.596356037 | AH4: 4.502832016 | AI4: 1.186908767 | AJ4: 5.398745698
D5: 2 | E5: =F4 -> 1.884393165 | F5: 10 | G5: =SIN(2*3.141598*$B$1/500+AC5)+1.5 -> 0.5531444953 | H5: 0.6268666098 | I5: 1.128406403 | J5: 0.660508791 | K5: 1.603666458 | L5: 2.345094903 | M5: 0.5235529 | N5: 1.146404095 | AB5: 4.865949605 | AC5: 4.320985039 | AD5: 4.139263522 | AE5: 3.458394965 | AF5: 4.074016214 | AG5: 2.973816985 | AH5: 2.070927367 | AI5: 4.430999382 | AJ5: 5.857850106
D6: 3 | E6: =G4 -> 2.349157404 | F6: =G5 -> 0.5531444953 | G6: 10 | H6: =SIN(2*3.141598*$B$1/500+AD6)+1.5 -> 2.157373953 | I6: 1.122248174 | J6: 0.839501275 | K6: 2.486771646 | L6: 2.283548022 | M6: 1.819249165 | N6: 0.8758323257 | AC6: 3.937708878 | AD6: 0.6534059799 | AE6: 5.831895667 | AF6: 5.497779878 | AG6: 1.344038676 | AH6: 2.177314238 | AI6: 2.75273294 | AJ6: 5.545196922
D7: 4 | E7: =H4 -> 0.5039124902 | F7: =H5 -> 0.6268666098 | G7: =H6 -> 2.157373953 | H7: 10 | I7: =SIN(2*3.141598*$B$1/500+AE7)+1.5 -> 0.680000282 | J7: 2.480956726 | K7: 2.120516747 | L7: 0.7754432396 | M7: 1.392024056 | N7: 2.231686575 | AD7: 5.210075958 | AE7: 5.257852153 | AF7: 1.31140491 | AG7: 0.605478858 | AH7: 5.408871611 | AI7: 6.111075815 | AJ7: 2.256877065
D8: 5 | E8: =I4 -> 0.5258478127 | F8: =I5 -> 1.128406403 | G8: =I6 -> 1.122248174 | H8: =I7 -> 0.680000282 | I8: 10 | J8: =SIN(2*3.141598*$B$1/500+AF8)+1.5 -> 1.605468628 | K8: =SIN(2*3.141598*$B$1/500+AG8)+1.5 -> 2.494396737 | L8: =SIN(2*3.141598*$B$1/500+AH8)+1.5 -> 0.5592233736 | M8: =SIN(2*3.141598*$B$1/500+AI8)+1.5 -> 0.8425913589 | N8: =SIN(2*3.141598*$B$1/500+AJ8)+1.5 -> 1.807680084 | AE8: 1.390787974 | AF8: 0.04174251812 | AG8: 1.400963322 | AH8: 4.994348856 | AI8: 3.795044666 | AJ8: 0.2488312476
D9: 6 | E9: =J4 -> 0.5023523128 | F9: =J5 -> 0.660508791 | G9: =J6 -> 0.839501275 | H9: =J7 -> 2.480956726 | I9: =J8 -> 1.605468628 | J9: 10 | K9: =SIN(2*3.141598*$B$1/500+AG9)+1.5 -> 2.127838871 | L9: =SIN(2*3.141598*$B$1/500+AH9)+1.5 -> 1.070186835 | M9: =SIN(2*3.141598*$B$1/500+AI9)+1.5 -> 0.6352250962 | N9: =SIN(2*3.141598*$B$1/500+AJ9)+1.5 -> 0.5165356335 | AF9: 5.223635722 | AG9: 0.6148508884 | AH9: 3.521955869 | AI9: 5.174560737 | AJ9: 4.830572952
D10: 7 | E10: =K4 -> 0.9166016437 | F10: =K5 -> 1.603666458 | G10: =K6 -> 2.486771646 | H10: =K7 -> 2.120516747 | I10: =K8 -> 2.494396737 | J10: =K9 -> 2.127838871 | K10: 10 | L10: =SIN(2*3.141598*$B$1/500+AH10)+1.5 -> 1.28313277 | M10: =SIN(2*3.141598*$B$1/500+AI10)+1.5 -> 0.9697173134 | N10: =SIN(2*3.141598*$B$1/500+AJ10)+1.5 -> 1.173954068 | AG10: 4.194717105 | AH10: 6.000658503 | AI10: 3.636603984 | AJ10: 5.88714477
D11: 8 | E11: =L4 -> 0.51058595 | F11: =L5 -> 2.345094903 | G11: =L6 -> 2.283548022 | H11: =L7 -> 0.7754432396 | I11: =L8 -> 0.5592233736 | J11: =L9 -> 1.070186835 | K11: =L10 -> 1.28313277 | L11: 10 | M11: =SIN(2*3.141598*$B$1/500+AI11)+1.5 -> 1.734788063 | N11: =SIN(2*3.141598*$B$1/500+AJ11)+1.5 -> 2.047439363 | AH11: 0.7013319784 | AI11: 0.1730779024 | AJ11: 2.49836873
D12: 9 | E12: =M4 -> 2.449246449 | F12: =M5 -> 0.5235529 | G12: =M6 -> 1.819249165 | H12: =M7 -> 1.392024056 | I12: =M8 -> 0.8425913589 | J12: =M9 -> 0.6352250962 | K12: =M10 -> 0.9697173134 | L12: =M11 -> 1.734788063 | M12: 10 | N12: =SIN(2*3.141598*$B$1/500+AJ12)+1.5 -> 0.8929444816 | AI12: 3.903776698 | AJ12: 5.566912694
D13: 10 | E13: =N4 -> 0.7685015723 | F13: =N5 -> 1.146404095 | G13: =N6 -> 0.8758323257 | H13: =N7 -> 2.231686575 | I13: =N8 -> 1.807680084 | J13: =N9 -> 0.5165356335 | K13: =N10 -> 1.173954068 | L13: =N11 -> 2.047439363 | M13: =N12 -> 0.8929444816 | N13: 10 | AJ13: 2.967061259
A14: Average CI End | B14: =AVERAGE(E14:N14) -> 1.501744664 | C14: =VAR(E14:N14) -> 1.695039543e-05 | D14: End CI | E14: 1.506665725 | F14: 1.504969956 | G14: 1.502526769 | H14: 1.497665861 | I14: 1.498997711 | J14: 1.499514405 | K14: 1.505967758 | L14: 1.506919134 | M14: 1.496566572 | N14: 1.497652748
A18: Time | B18: Group 1 | C18: Group 2 | D18: Group 3
A19: 1 | B19: 1.256370842 | C19: 1.256370842 | D19: 1.256370842
A20: 2 | B20: 1.360208041 | C20: 1.171344492 | D20: 1.118812407
A21: 3 | B21: 1.482998872 | C21: 1.116995017 | D21: 0.9978536154
A22: 4 | B22: 1.565124447 | C22: 1.106644905 | D22: 0.9568528235
A23: 5 | B23: 1.565932343 | C23: 1.099122553 | D23: 0.9740022121
A24: 6 | B24: 1.5539002 | C24: 1.070405676 | D24: 1.002340877
A25: 7 | B25: 1.530763078 | C25: 1.026497781 | D25: 1.011483937
A26: 8 | B26: 1.473591321 | C26: 0.9962418652 | D26: 1.006126427
A27: 9 | B27: 1.42559183 | C27: 0.980441868 | D27: 0.991982918
A28: 10 | B28: 1.404379285 | C28: 0.9834880376 | D28: 0.9803252951
A29: 11 | B29: 1.407706192 | C29: 0.9955545936 | D29: 0.9752427091
A30: 12 | B30: 1.423752458 | C30: 1.005153662 | D30: 0.9750232069
A31: 13 | B31: 1.438321583 | C31: 1.007192686 | D31: 0.9760465041
A32: 14 | B32: 1.446246076 | C32: 1.004094528 | D32: 0.9787793329
A33: 15 | B33: 1.447678783 | C33: 1.004577685 | D33: 0.979038068
A34: 16 | B34: 1.480076576 | C34: 1.00149306 | D34: 0.9787077236
A35: 17 | B35: 1.523805718 | C35: 1.000189915 | D35: 0.9773571871
A36: 18 | B36: 1.574804895 | C36: 0.9982180638 | D36: 0.9754471643
A37: 19 | B37: 1.647688286 | C37: 0.9934027911 | D37: 0.9755293539
A38: 20 | B38: 1.704104997 | C38: 0.993742925 | D38: 0.9760058336
A39: 21 | B39: 1.722258977 | C39: 0.9908104027 | D39: 0.9775683606
A40: 22 | B40: 1.719705737 | C40: 0.9870638113 | D40: 0.9772294231
A41: 23 | B41: 1.710203529 | C41: 0.9870517588 | D41: 0.977119341
A42: 24 | B42: 1.694992684 | C42: 0.9858788045 | D42: 0.9774423875
A43: 25 | B43: 1.648850541 | C43: 0.9877192787 | D43: 1.031187223
A44: 26 | B44: 1.605236542 | C44: 0.9881454734 | D44: 1.126708804
A45: 27 | B45: 1.583937858 | C45: 0.9897952314 | D45: 1.240573816
A46: 28 | B46: 1.583283957 | C46: 0.9914925222 | D46: 1.358105224
A47: 29 | B47: 1.590558044 | C47: 0.9896741796 | D47: 1.455218026
A48: 30 | B48: 1.603329943 | C48: 0.9918260211 | D48: 1.512017294
A49: 31 | B49: 1.612425651 | C49: 0.9943615983 | D49: 1.532081317
A50: 32 | B50: 1.616895401 | C50: 0.9967815202 | D50: 1.526133768
A51: 33 | B51: 1.619007243 | C51: 0.9969426494 | D51: 1.513424941
A52: 34 | B52: 1.617309248 | C52: 0.9939743724 | D52: 1.505800902
A53: 35 | B53: 1.61568056 | C53: 0.9944364373 | D53: 1.504738602
A54: 36 | B54: 1.615866458 | C54: 0.9929127645 | D54: 1.514496968
A55: 37 | B55: 1.619902681 | C55: 0.9896165588 | D55: 1.522645853
A56: 38 | B56: 1.682125632 | C56: 0.9904552692 | D56: 1.529044333
A57: 39 | B57: 1.784162938 | C57: 0.9908487616 | D57: 1.530604021
A58: 40 | B58: 1.881804283 | C58: 0.9901070657 | D58: 1.53270419
A59: 41 | B59: 1.916420824 | C59: 0.9902762924 | D59: 1.532149271
A60: 42 | B60: 1.91402832 | C60: 0.9931123695 | D60: 1.528658126
A61: 43 | B61: 1.908125926 | C61: 0.9963796731 | D61: 1.529280494
A62: 44 | B62: 1.898597052 | C62: 1.001780734 | D62: 1.529950693
A63: 45 | B63: 1.887444854 | C63: 1.005198381 | D63: 1.528596641
A64: 46 | B64: 1.877402463 | C64: 1.00517336 | D64: 1.529395035
A65: 47 | B65: 1.875096665 | C65: 1.004604091 | D65: 1.527332333
A66: 48 | B66: 1.876351319 | C66: 1.003545178 | D66: 1.529118576
A67: 49 | B67: 1.878492069 | C67: 1.006011568 | D67: 1.527512461
A68: 50 | B68: 1.879731822 | C68: 1.009910077 | D68: 1.529301112
A69: 51 | B69: 1.881999582 | C69: 1.01164015 | D69: 1.528021003
A70: 52 | B70: 1.881869066 | C70: 1.011500755 | D70: 1.529078313
A71: 53 | B71: 1.884977838 | C71: 1.008706514 | D71: 1.53208259
A72: 54 | B72: 1.883853134 | C72: 1.007656035 | D72: 1.530166358
A73: 55 | B73: 1.882833926 | C73: 1.007405618 | D73: 1.523572837
A74: 56 | B74: 1.880067101 | C74: 1.011228252 | D74: 1.523743234
A75: 57 | B75: 1.879973277 | C75: 1.017135257 | D75: 1.524221438
A76: 58 | B76: 1.877207547 | C76: 1.024529247 | D76: 1.527494517
A77: 59 | B77: 1.874338148 | C77: 1.027044289 | D77: 1.531489207
A78: 60 | B78: 1.874885633 | C78: 1.024966288 | D78: 1.536365602
A79: 61 | B79: 1.873836955 | C79: 1.02425862 | D79: 1.539503191
A80: 62 | B80: 1.868761487 | C80: 1.023688646 | D80: 1.542083074
A81: 63 | B81: 1.866916437 | C81: 1.022345387 | D81: 1.541308631
A82: 64 | B82: 1.860415103 | C82: 1.020199107 | D82: 1.536430809
A83: 65 | B83: 1.861481103 | C83: 1.019654675 | D83: 1.533838689
A84: 66 | B84: 1.861618507 | C84: 1.021999167 | D84: 1.531251825
A85: 67 | B85: 1.862020303 | C85: 1.02551833 | D85: 1.532155475
A86: 68 | B86: 1.860877353 | C86: 1.02881155 | D86: 1.532606771
A87: 69 | B87: 1.858228453 | C87: 1.029759416 | D87: 1.536392684
A88: 70 | B88: 1.856847991 | C88: 1.028525008 | D88: 1.539762246
A89: 71 | B89: 1.856057312 | C89: 1.024753902 | D89: 1.544274331
A90: 72 | B90: 1.854855901 | C90: 1.022502097 | D90: 1.547435704
A91: 73 | B91: 1.854787406 | C91: 1.021032794 | D91: 1.549018235
A92: 74 | B92: 1.855933776 | C92: 1.019143134 | D92: 1.5496742
A93: 75 | B93: 1.852643664 | C93: 1.01830234 | D93: 1.550134796
A94: 76 | B94: 1.850281778 | C94: 1.022249948 | D94: 1.546724896
A95: 77 | B95: 1.851152691 | C95: 1.022387306 | D95: 1.542087388
A96: 78 | B96: 1.850769307 | C96: 1.02300929 | D96: 1.538893065
A97: 79 | B97: 1.851691053 | C97: 1.021857234 | D97: 1.536426645
A98: 80 | B98: 1.851643557 | C98: 1.020506352 | D98: 1.53580561
A99: 81 | B99: 1.85538057 | C99: 1.019768766 | D99: 1.535230184
A100: 82 | B100: 1.857887922 | C100: 1.025141068 | D100: 1.531918796
A101: 83 | B101: 1.86027483 | C101: 1.030617155 | D101: 1.522008721
A102: 84 | B102: 1.858671331 | C102: 1.033996355 | D102: 1.511341304
A103: 85 | B103: 1.85835891 | C103: 1.038215658 | D103: 1.50287951
A104: 86 | B104: 1.857539291 | C104: 1.040769309 | D104: 1.497934444
A105: 87 | B105: 1.857675014 | C105: 1.039098986 | D105: 1.497676253
A106: 88 | B106: 1.856720196 | C106: 1.037017028 | D106: 1.500577948
A107: 89 | B107: 1.85620991 | C107: 1.035729455 | D107: 1.504647745
A108: 90 | B108: 1.856749768 | C108: 1.032948303 | D108: 1.509566779
A109: 91 | B109: 1.853814637 | C109: 1.031180796 | D109: 1.511113957
A110: 92 | B110: 1.851033939 | C110: 1.033996578 | D110: 1.511006407
A111: 93 | B111: 1.848135513 | C111: 1.036563063 | D111: 1.508641297
A112: 94 | B112: 1.845856961 | C112: 1.041866274 | D112: 1.507666632
A113: 95 | B113: 1.842950824 | C113: 1.043846867 | D113: 1.502419537
A114: 96 | B114: 1.842826439 | C114: 1.043620767 | D114: 1.500148844
A115: 97 | B115: 1.843935483 | C115: 1.041201213 | D115: 1.501090793
A116: 98 | B116: 1.844020147 | C116: 1.042326256 | D116: 1.499089087
A117: 99 | B117: 1.837686004 | C117: 1.046152027 | D117: 1.500226023
A118: 100 | B118: 1.838591976 | C118: 1.045195397 | D118: 1.501719455

Sheet Sheet3
